lending/lending_fUSD_20250102
["ID","MTS","AMOUNT","RATE_DAILY","PERIOD"]
[347416251,1735777833864,-572.68,0.00010958,2]
[347416252,1735777833874,-500.0,0.00010958,2]
[347416253,1735777833884,-1316.2,0.00010958,2]
[347416254,1735777833893,-500.0,0.00010958,2]
[347416255,1735777833902,-500.0,0.00010958,2]
[347416256,1735777833912,-530.34,0.00010958,2]
[347416257,1735777833922,-623.92,0.00010958,2]
[347416258,1735777833931,-941.49,0.00010958,2]
[347416259,1735777833941,-500.0,0.00010958,2]
[347416260,1735777833951,-500.0,0.00010958,2]
[347416261,1735777833960,-1322.89,0.00010958,2]
[347416262,1735777833969,-508.03,0.00010958,2]
[347416263,1735777833979,-872.67,0.00010958,2]
[347416264,1735777833989,-379.06956026,0.00010958,2]
[347416265,1735777834000,-519.55,0.00010958,2]
[347416266,1735777834010,-500.0,0.00010958,2]
[347416267,1735777834020,-500.0,0.00010958,2]
[347416268,1735777834030,-562.09,0.00010958,2]
[347416269,1735777834039,-500.0,0.00010958,2]
[347416270,1735777834049,-500.0,0.00010958,2]
[347416271,1735777834059,-788.28,0.00010958,2]
[347416272,1735777834068,-500.0,0.00010958,2]
[347416273,1735777834078,-500.0,0.00010958,2]
[347416274,1735777834087,-500.0,0.00010958,2]
[347416275,1735777834096,-500.0,0.00010958,2]
[347416276,1735777834106,-500.0,0.00010958,2]
[347416277,1735777834115,-500.0,0.00010958,2]
[347416278,1735777834125,-513.0,0.00010958,2]
[347416279,1735777834135,-500.0,0.00010958,2]
[347416280,1735777834144,-788.41,0.00010958,2]
[347416281,1735777834154,-500.0,0.00010958,2]
[347416282,1735777834163,-500.0,0.00010958,2]
[347416283,1735777834173,-500.0,0.00010958,2]
[347416284,1735777834183,-811.42,0.00010958,2]
[347416285,1735777834194,-500.0,0.00010958,2]
[347416286,1735777834204,-210.85537191,0.00010958,2]
[347416287,1735777834214,-500.0,0.00010958,2]
[347416288,1735777834224,-500.0,0.00010958,2]
[347416289,1735777834234,-500.0,0.00010958,2]
[347416290,1735777834244,-710.19,0.00010958,2]
[347416291,1735777834262,-500.0,0.00010958,2]
[347416292,1735777834272,-500.0,0.00010958,2]
[347416293,1735777834283,-705.81,0.00010958,2]
[347416294,1735777834294,-534.62,0.00010958,2]
[347416295,1735777834304,-500.0,0.00010958,2]
[347416296,1735777834314,-777.21,0.00010958,2]
[347416297,1735777834323,-1332.73,0.00010958,2]
[347416298,1735777834335,-500.0,0.00010958,2]
[347416299,1735777834346,-500.0,0.00010958,2]
[347416301,1735777834356,-924.32,0.00010958,2]
[347416303,1735777834366,-500.0,0.00010958,2]
[347416304,1735777834376,-500.0,0.00010958,2]
[347416306,1735777834386,-500.0,0.00010958,2]
[347416308,1735777834396,-500.0,0.00010958,2]
[347416310,1735777834406,-500.0,0.00010958,2]
[347416311,1735777834416,-500.0,0.00010958,2]
[347416313,1735777834426,-500.0,0.00010958,2]
[347416314,1735777834437,-1109.26,0.00010958,2]
[347416315,1735777834446,-743.93,0.00010958,2]
[347416316,1735777834456,-1203.55,0.00010958,2]
[347416317,1735777834466,-500.0,0.00010958,2]
[347416318,1735777834476,-1944.82,0.00010958,2]
[347416319,1735777834485,-500.0,0.00010958,2]
[347416320,1735777834495,-275.06825494,0.00010958,2]
[347416321,1735777834505,-791.17,0.00010958,2]
[347416322,1735777834514,-500.0,0.00010958,2]
[347416323,1735777834524,-500.0,0.00010958,2]
[347416324,1735777834534,-500.0,0.00010958,2]
[347416325,1735777834543,-2690.89,0.00010958,2]
[347416326,1735777834552,-500.0,0.00010958,2]
[347416327,1735777834561,-771.79,0.00010958,2]
[347416328,1735777834570,-500.0,0.00010958,2]
[347416329,1735777834579,-500.0,0.00010958,2]
[347416330,1735777834588,-500.0,0.00010958,2]
[347416331,1735777834598,-500.0,0.00010958,2]
[347416332,1735777834607,-1011.58,0.00010958,2]
[347416333,1735777834616,-821.93,0.00010958,2]
[347416334,1735777834625,-1494.14,0.00010958,2]
[347416335,1735777834634,-500.0,0.00010958,2]
[347416336,1735777834644,-653.49,0.00010958,2]
[347416337,1735777834653,-500.0,0.00010958,2]
[347416338,1735777834662,-839.18,0.00010958,2]
[347416339,1735777834672,-960.53,0.00010958,2]
[347416340,1735777834681,-607.38,0.00010958,2]
[347416341,1735777834690,-348.11562832,0.00010958,2]
[347416342,1735777834699,-1149.07,0.00010958,2]
[347416343,1735777834708,-671.1,0.00010958,2]
[347416344,1735777834718,-500.0,0.00010958,2]
[347416345,1735777834727,-500.0,0.00010958,2]
[347416346,1735777834736,-842.59,0.00010958,2]
[347416347,1735777834745,-500.0,0.00010958,2]
[347416348,1735777834755,-863.05,0.00010958,2]
[347416349,1735777834764,-500.0,0.00010958,2]
[347416350,1735777834773,-6539.8,0.00010958,2]
[347416351,1735777834784,-1011.58,0.00010958,2]
[347416352,1735777834793,-1393.23,0.00010958,2]
[347416353,1735777834802,-500.0,0.00010958,2]
[347416354,1735777834811,-500.0,0.00010958,2]
[347416355,1735777834821,-500.0,0.00010958,2]
[347416356,1735777834830,-500.0,0.00010958,2]
[347416357,1735777834840,-511.85,0.00010958,2]
[347416358,1735777834849,-419.8402372,0.00010958,2]
[347416359,1735777834858,-1047.12,0.00010958,2]
[347416360,1735777834867,-500.0,0.00010958,2]
[347416361,1735777834877,-500.0,0.00010958,2]
[347416362,1735777834887,-500.0,0.00010958,2]
[347416363,1735777834896,-500.0,0.00010958,2]
[347416364,1735777834906,-500.0,0.00010958,2]
[347416365,1735777835165,-500.0,0.00010958,2]
[347416366,1735777835175,-500.0,0.00010958,2]
[347416367,1735777835185,-500.0,0.00010958,2]
[347416368,1735777835194,-903.75,0.00010958,2]
[347416369,1735777835203,-514.2,0.00010958,2]
[347416370,1735777835212,-712.52,0.00010958,2]
[347416371,1735777835222,-1290.03,0.00010958,2]
[347416372,1735777835231,-500.0,0.00010958,2]
[347416373,1735777835240,-665.0,0.00010958,2]
[347416374,1735777835249,-744.61,0.00010958,2]
[347416375,1735777835259,-500.0,0.00010958,2]
[347416376,1735777835268,-500.0,0.00010958,2]
[347416377,1735777835278,-500.0,0.00010958,2]
[347416378,1735777835288,-500.0,0.00010958,2]
[347416379,1735777835297,-500.0,0.00010958,2]
[347416380,1735777835307,-500.0,0.00010958,2]
[347416381,1735777835316,-570.95,0.00010958,2]
[347416382,1735777835325,-500.0,0.00010958,2]
[347416383,1735777835334,-904.12,0.00010958,2]
[347416384,1735777835344,-700.31,0.00010958,2]
[347416385,1735777835353,-1153.26,0.00010958,2]
[347416386,1735777835363,-500.0,0.00010958,2]
[347416387,1735777835372,-500.0,0.00010958,2]
[347416388,1735777835381,-709.86,0.00010958,2]
[347416389,1735777835391,-500.0,0.00010958,2]
[347416390,1735777835400,-965.71,0.00010958,2]
[347416391,1735777835410,-895.64,0.00010958,2]
[347416392,1735777835419,-670.29,0.00010958,2]
[347416393,1735777835428,-693.71,0.00010958,2]
[347416394,1735777835438,-500.0,0.00010958,2]
[347416395,1735777835447,-500.0,0.00010958,2]
[347416396,1735777835456,-793.56,0.00010958,2]
[347416397,1735777835465,-500.0,0.00010958,2]
[347416398,1735777835474,-520.89,0.00010958,2]
[347416399,1735777835483,-621.71,0.00010958,2]
[347416400,1735777835493,-998.59,0.00010958,2]
[347416401,1735777835502,-1121.37,0.00010958,2]
[347416402,1735777835512,-500.0,0.00010958,2]
[347416403,1735777835522,-500.0,0.00010958,2]
[347416404,1735777835531,-755.27,0.00010958,2]
[347416405,1735777835540,-500.0,0.00010958,2]
[347416406,1735777835549,-701.95,0.00010958,2]
[347416407,1735777835561,-500.0,0.00010958,2]
[347416408,1735777835571,-503.44,0.00010958,2]
[347416409,1735777835580,-874.64,0.00010958,2]
[347416410,1735777835590,-715.12,0.00010958,2]
[347416411,1735777835599,-1183.61,0.00010958,2]
[347416412,1735777835609,-991.23,0.00010958,2]
[347416413,1735777835618,-500.0,0.00010958,2]
[347416414,1735777835628,-581.79,0.00010958,2]
[347416415,1735777835638,-727.21,0.00010958,2]
[347416416,1735777835648,-500.0,0.00010958,2]
[347416417,1735777835659,-500.0,0.00010958,2]
[347416418,1735777835668,-735.5,0.00010958,2]
[347416419,1735777835678,-1784.93,0.00010958,2]
[347416420,1735777835688,-500.0,0.00010958,2]
[347416421,1735777835697,-500.0,0.00010958,2]
[347416422,1735777835707,-500.0,0.00010958,2]
[347416423,1735777835717,-500.0,0.00010958,2]
[347416424,1735777835728,-500.0,0.00010958,2]
[347416425,1735777835738,-771.03,0.00010958,2]
[347416426,1735777835747,-500.0,0.00010958,2]
[347416427,1735777835756,-500.0,0.00010958,2]
[347416428,1735777835766,-500.0,0.00010958,2]
[347416429,1735777835775,-1314.73,0.00010958,2]
[347416430,1735777835786,-780.29,0.00010958,2]
[347416431,1735777835795,-500.0,0.00010958,2]
[347416432,1735777835805,-1108.72,0.00010958,2]
[347416433,1735777835814,-500.0,0.00010958,2]
[347416434,1735777835823,-500.0,0.00010958,2]
[347416435,1735777835833,-500.0,0.00010958,2]
[347416436,1735777835843,-500.0,0.00010958,2]
[347416437,1735777835853,-500.0,0.00010958,2]
[347416438,1735777835863,-500.0,0.00010958,2]
[347416439,1735777835873,-500.0,0.00010958,2]
[347416440,1735777835882,-500.0,0.00010958,2]
[347416441,1735777835892,-1107.28,0.00010958,2]
[347416442,1735777835902,-500.0,0.00010958,2]
[347416443,1735777835912,-500.0,0.00010958,2]
[347416444,1735777835922,-1327.56,0.00010958,2]
[347416445,1735777835932,-500.0,0.00010958,2]
[347416446,1735777835942,-500.0,0.00010958,2]
[347416447,1735777835952,-500.0,0.00010958,2]
[347416448,1735777835962,-500.0,0.00010958,2]
[347416449,1735777835971,-500.0,0.00010958,2]
[347416450,1735777835981,-2523.45,0.00010958,2]
[347416451,1735777835991,-564.54,0.00010958,2]
[347416452,1735777836002,-500.0,0.00010958,2]
[347416453,1735777836023,-756.08,0.00010958,2]
[347416454,1735777836033,-1288.21,0.00010958,2]
[347416455,1735777836043,-500.0,0.00010958,2]
[347416456,1735777836054,-500.0,0.00010958,2]
[347416457,1735777836064,-684.21,0.00010958,2]
[347416458,1735777836075,-1206.74,0.00010958,2]
[347416459,1735777836085,-500.0,0.00010958,2]
[347416460,1735777836094,-900.54,0.00010958,2]
[347416461,1735777836104,-653.81,0.00010958,2]
[347416462,1735777836114,-931.35,0.00010958,2]
[347416463,1735777836124,-500.0,0.00010958,2]
[347416464,1735777836134,-500.0,0.00010958,2]
[347416465,1735777836143,-500.0,0.00010958,2]
[347416466,1735777836152,-1838.28,0.00010958,2]
[347416467,1735777836162,-515.09,0.00010958,2]
[347416468,1735777836171,-550.28,0.00010958,2]
[347416469,1735777836181,-650.94,0.00010958,2]
[347416470,1735777836190,-759.53,0.00010958,2]
[347416471,1735777836200,-893.54,0.00010958,2]
[347416472,1735777836209,-500.0,0.00010958,2]
[347416473,1735777836219,-1318.47,0.00010958,2]
[347416474,1735777836229,-1508.28,0.00010958,2]
[347416475,1735777836238,-500.0,0.00010958,2]
[347416476,1735777836248,-1087.62,0.00010958,2]
[347416477,1735777836258,-801.01,0.00010958,2]
[347416478,1735777836269,-1281.22,0.00010958,2]
[347416479,1735777836279,-861.79,0.00010958,2]
[347416480,1735777836289,-500.0,0.00010958,2]
[347416481,1735777836299,-5421.4,0.00010958,2]
[347416482,1735777836309,-701.61,0.00010958,2]
[347416483,1735777836319,-6660.4,0.00010958,2]
[347416484,1735777836329,-500.0,0.00010958,2]
[347416485,1735777836339,-500.0,0.00010958,2]
[347416486,1735777836349,-564.34,0.00010958,2]
[347416487,1735777836359,-500.0,0.00010958,2]
[347416488,1735777836368,-507.05,0.00010958,2]
[347416489,1735777836378,-500.0,0.00010958,2]
[347416490,1735777836387,-702.19,0.00010958,2]
[347416491,1735777836396,-1325.9,0.00010958,2]
[347416492,1735777836405,-555.35,0.00010958,2]
[347416493,1735777836414,-794.64,0.00010958,2]
[347416494,1735777836423,-1659.02,0.00010958,2]
[347416495,1735777836433,-647.56,0.00010958,2]
[347416496,1735777836442,-666.62,0.00010958,2]
[347416497,1735777836452,-2275.29,0.00010958,2]
[347416498,1735777836462,-544.72,0.00010958,2]
[347416499,1735777836471,-3469.46,0.00010958,2]
[347416500,1735777836481,-1029.02,0.00010958,2]
[347416501,1735777836490,-1545.43,0.00010958,2]
[347416502,1735777836499,-553.74,0.00010958,2]
[347416503,1735777836508,-687.44,0.00010958,2]
[347416504,1735777836517,-500.0,0.00010958,2]
[347416505,1735777836527,-500.0,0.00010958,2]
[347416506,1735777836538,-1337.69,0.00010958,2]
[347416507,1735777836547,-500.0,0.00010958,2]
[347416508,1735777836557,-500.0,0.00010958,2]
[347416509,1735777836567,-500.0,0.00010958,2]
[347416510,1735777836577,-500.0,0.00010958,2]
[347416511,1735777836586,-500.0,0.00010958,2]
[347416512,1735777836596,-500.0,0.00010958,2]
[347416513,1735777836605,-500.0,0.00010958,2]
[347416514,1735777836615,-2598.13,0.00010958,2]
[347416515,1735777836625,-500.0,0.00010958,2]
[347416516,1735777836634,-1022.66,0.00010958,2]
[347416517,1735777836643,-807.96,0.00010958,2]
[347416518,1735777836653,-638.15,0.00010958,2]
[347416519,1735777836662,-80000.0,0.00010958,2]
[347416520,1735777836671,-500.0,0.00010958,2]
[347416521,1735777836681,-706.23,0.00010958,2]
[347416522,1735777836691,-867.9,0.00010958,2]
[347416523,1735777836700,-500.0,0.00010958,2]
[347416524,1735777836710,-500.0,0.00010958,2]
[347416525,1735777836721,-500.0,0.00010958,2]
[347416526,1735777836731,-14591.23,0.00010958,2]
[347416527,1735777836740,-500.0,0.00010958,2]
[347416528,1735777836750,-500.0,0.00010958,2]
[347416529,1735777836759,-934.48,0.00010958,2]
[347416530,1735777836769,-522.65,0.00010958,2]
[347416531,1735777836778,-500.0,0.00010958,2]
[347416532,1735777836787,-1657.96,0.00010958,2]
[347416533,1735777836797,-500.0,0.00010958,2]
[347416534,1735777836806,-925.26,0.00010958,2]
[347416535,1735777836815,-1482.3,0.00010958,2]
[347416536,1735777836825,-500.0,0.00010958,2]
[347416537,1735777836835,-2417.31,0.00010958,2]
[347416538,1735777836844,-500.0,0.00010958,2]
[347416539,1735777836855,-941.41,0.00010958,2]
[347416540,1735777836864,-839.91,0.00010958,2]
[347416541,1735777836874,-924.34,0.00010958,2]
[347416542,1735777836883,-1201.58,0.00010958,2]
[347416543,1735777836892,-887.12,0.00010958,2]
[347416544,1735777836901,-500.0,0.00010958,2]
[347416545,1735777836911,-8006.54,0.00010958,2]
[347416546,1735777836920,-500.0,0.00010958,2]
[347416547,1735777836930,-2089.46,0.00010958,2]
[347416548,1735777836939,-1263.82,0.00010958,2]
[347416549,1735777836948,-500.0,0.00010958,2]
[347416550,1735777836957,-917.64,0.00010958,2]
[347416551,1735777836967,-500.0,0.00010958,2]
[347416552,1735777836976,-629.44,0.00010958,2]
[347416553,1735777836986,-1091.82,0.00010958,2]
[347416554,1735777836995,-500.0,0.00010958,2]
[347416555,1735777837009,-1514.58,0.00010958,2]
[347416556,1735777837018,-500.0,0.00010958,2]
[347416557,1735777837028,-551.99,0.00010958,2]
[347416558,1735777837037,-817.4,0.00010958,2]
[347416559,1735777837047,-1389.77,0.00010958,2]
[347416560,1735777837058,-984.57,0.00010958,2]
[347416561,1735777837068,-500.0,0.00010958,2]
[347416562,1735777837077,-2639.49,0.00010958,2]
[347416563,1735777837086,-500.0,0.00010958,2]
[347416564,1735777837096,-564.01,0.00010958,2]
[347416565,1735777837105,-580.6,0.00010958,2]
[347416566,1735777837114,-1317.32,0.00010958,2]
[347416567,1735777837123,-500.0,0.00010958,2]
[347416568,1735777837132,-693.65,0.00010958,2]
[347416569,1735777837142,-926.8,0.00010958,2]
[347416570,1735777837151,-500.0,0.00010958,2]
[347416571,1735777837161,-768.92,0.00010958,2]
[347416572,1735777837170,-1262.29,0.00010958,2]
[347416573,1735777837179,-1583.07,0.00010958,2]
[347416574,1735777837189,-500.0,0.00010958,2]
[347416575,1735777837200,-862.33,0.00010958,2]
[347416576,1735777837209,-926.73,0.00010958,2]
[347416577,1735777837219,-2643.29,0.00010958,2]
[347416578,1735777837228,-636.19,0.00010958,2]
[347416579,1735777837237,-872.5,0.00010958,2]
[347416580,1735777837246,-770.83,0.00010958,2]
[347416581,1735777837256,-1193.51,0.00010958,2]
[347416582,1735777837265,-500.0,0.00010958,2]
[347416583,1735777837275,-1199.12,0.00010958,2]
[347416584,1735777837284,-754.97,0.00010958,2]
[347416585,1735777837293,-1223.22,0.00010958,2]
[347416586,1735777837303,-375.85881962,0.00010958,2]
[347416587,1735777837312,-500.0,0.00010958,2]
[347416588,1735777837321,-500.0,0.00010958,2]
[347416589,1735777837331,-500.0,0.00010958,2]
[347416590,1735777837340,-4152.83,0.00010958,2]
[347416591,1735777837349,-500.0,0.00010958,2]
[347416592,1735777837359,-1067.62,0.00010958,2]
[347416593,1735777837369,-1511.48,0.00010958,2]
[347416594,1735777837379,-701.13,0.00010958,2]
[347416595,1735777837388,-500.0,0.00010958,2]
[347416596,1735777837397,-1495.64,0.00010958,2]
[347416597,1735777837406,-746.52,0.00010958,2]
[347416598,1735777837415,-1159.98,0.00010958,2]
[347416599,1735777837425,-561.13,0.00010958,2]
[347416600,1735777837434,-500.0,0.00010958,2]
[347416601,1735777837444,-766.85,0.00010958,2]
[347416602,1735777837453,-1221.92,0.00010958,2]
[347416603,1735777837462,-1197.76,0.00010958,2]
[347416604,1735777837472,-778.03,0.00010958,2]
[347416605,1735777837481,-503.88,0.00010958,2]
[347416606,1735777837490,-500.0,0.00010958,2]
[347416607,1735777837499,-500.0,0.00010958,2]
[347416608,1735777837509,-1191.29,0.00010958,2]
[347416609,1735777837518,-1350.38,0.00010958,2]
[347416610,1735777837528,-1160.84,0.00010958,2]
[347416611,1735777837538,-3485.41,0.00010958,2]
[347416612,1735777837548,-500.0,0.00010958,2]
[347416613,1735777837558,-528.0,0.00010958,2]
[347416614,1735777837567,-1523.42,0.00010958,2]
[347416615,1735777837579,-500.0,0.00010958,2]
[347416616,1735777837588,-557.23,0.00010958,2]
[347416617,1735777837598,-1093.69,0.00010958,2]
[347416618,1735777837608,-866.58,0.00010958,2]
[347416619,1735777837617,-3011.78,0.00010958,2]
[347416620,1735777837626,-500.0,0.00010958,2]
[347416621,1735777837636,-500.0,0.00010958,2]
[347416622,1735777837645,-575.5,0.00010958,2]
[347416623,1735777837654,-1157.86,0.00010958,2]
[347416624,1735777837664,-1325.04,0.00010958,2]
[347416626,1735777837673,-1139.35,0.00010958,2]
[347416627,1735777837682,-2446.86,0.00010958,2]
[347416628,1735777837692,-537.24,0.00010958,2]
[347416629,1735777837701,-2746.27,0.00010958,2]
[347416630,1735777837711,-500.0,0.00010958,2]
[347416631,1735777837720,-800.96,0.00010958,2]
[347416632,1735777837731,-500.0,0.00010958,2]
[347416633,1735777837741,-500.0,0.00010958,2]
[347416634,1735777837751,-1118.93,0.00010958,2]
[347416635,1735777837762,-1539.96,0.00010958,2]
[347416636,1735777837771,-1288.56,0.00010958,2]
[347416637,1735777837780,-8661.24,0.00010958,2]
[347416638,1735777837789,-639.17,0.00010958,2]
[347416639,1735777837799,-922.87,0.00010958,2]
[347416640,1735777837808,-500.0,0.00010958,2]
[347416641,1735777837817,-524.95,0.00010958,2]
[347416642,1735777837826,-517.41,0.00010958,2]
[347416643,1735777837836,-500.0,0.00010958,2]
[347416644,1735777837845,-2529.56,0.00010958,2]
[347416645,1735777837854,-1221.9,0.00010958,2]
[347416647,1735777837863,-735.5,0.00010958,2]
[347416650,1735777837873,-8547.14,0.00010958,2]
[347416652,1735777837882,-500.0,0.00010958,2]
[347416654,1735777837891,-1991.21,0.00010958,2]
[347416656,1735777837901,-500.0,0.00010958,2]
[347416658,1735777837910,-737.61,0.00010958,2]
[347416659,1735777837919,-500.0,0.00010958,2]
[347416660,1735777837929,-1953.95,0.00010958,2]
[347416661,1735777837938,-500.0,0.00010958,2]
[347416662,1735777837948,-1504.89,0.00010958,2]
[347416663,1735777837957,-919.67,0.00010958,2]
[347416664,1735777837967,-500.0,0.00010958,2]
[347416665,1735777837976,-2723.88,0.00010958,2]
[347416666,1735777837985,-1004.82,0.00010958,2]
[347416667,1735777837994,-1040.19,0.00010958,2]
[347416668,1735777838009,-1019.16,0.00010958,2]
[347416669,1735777838020,-1154.26,0.00010958,2]
[347416670,1735777838029,-1476.88,0.00010958,2]
[347416671,1735777838038,-927.24,0.00010958,2]
[347416672,1735777838048,-500.0,0.00010958,2]
[347416673,1735777838060,-500.0,0.00010958,2]
[347416674,1735777838070,-1668.87,0.00010958,2]
[347416675,1735777838080,-1559.59,0.00010958,2]
[347416676,1735777838089,-500.0,0.00010958,2]
[347416677,1735777838099,-1690.72,0.00010958,2]
[347416678,1735777838108,-1766.88,0.00010958,2]
[347416679,1735777838118,-3529.42,0.00010958,2]
[347416680,1735777838128,-2462.93,0.00010958,2]
[347416681,1735777838137,-822.42,0.00010958,2]
[347416682,1735777838146,-1785.02,0.00010958,2]
[347416683,1735777838156,-500.0,0.00010958,2]
[347416684,1735777838165,-865.12,0.00010958,2]
[347416685,1735777838175,-627.52,0.00010958,2]
[347416686,1735777838185,-1127.24,0.00010958,2]
[347416687,1735777838194,-831.18,0.00010958,2]
[347416688,1735777838204,-1883.96,0.00010958,2]
[347416689,1735777838213,-1799.47,0.00010958,2]
[347416690,1735777838223,-809.34,0.00010958,2]
[347416691,1735777838233,-500.0,0.00010958,2]
[347416692,1735777838242,-733.15,0.00010958,2]
[347416693,1735777838252,-500.0,0.00010958,2]
[347416694,1735777838261,-1347.95,0.00010958,2]
[347416695,1735777838271,-2835.7,0.00010958,2]
[347416696,1735777838281,-500.8948725,0.00010958,2]
[347416697,1735777838290,-1003.51,0.00010958,2]
[347416698,1735777838300,-500.0,0.00010958,2]
[347416699,1735777838309,-500.0,0.00010958,2]
[347416700,1735777838318,-1590.15,0.00010958,2]
[347416701,1735777838327,-513.45,0.00010958,2]
[347416702,1735777838337,-1344.43,0.00010958,2]
[347416703,1735777838346,-500.0,0.00010958,2]
[347416704,1735777838356,-5476.17,0.00010958,2]
[347416705,1735777838365,-1053.64,0.00010958,2]
[347416706,1735777838374,-500.0,0.00010958,2]
[347416707,1735777838384,-521.33,0.00010958,2]
[347416708,1735777838394,-500.0,0.00010958,2]
[347416709,1735777838403,-500.0,0.00010958,2]
[347416710,1735777838413,-500.0,0.00010958,2]
[347416712,1735777838422,-1217.56,0.00010958,2]
[347416714,1735777838431,-707.05,0.00010958,2]
[347416716,1735777838441,-500.0,0.00010958,2]
[347416718,1735777838450,-1286.46,0.00010958,2]
[347416720,1735777838459,-715.11,0.00010958,2]
[347416722,1735777838468,-1048.82,0.00010958,2]
[347416724,1735777838477,-712.62,0.00010958,2]
[347416727,1735777838487,-3024.73,0.00010958,2]
[347416729,1735777838497,-692.67,0.00010958,2]
[347416731,1735777838506,-500.0,0.00010958,2]
[347416734,1735777838516,-6590.37,0.00010958,2]
[347416736,1735777838525,-4165.54,0.00010958,2]
[347416738,1735777838537,-415.4538744,0.00010958,2]
[347416740,1735777838549,-500.0,0.00010958,2]
[347416742,1735777838558,-500.0,0.00010958,2]
[347416744,1735777838567,-1991.11,0.00010958,2]
[347416746,1735777838576,-3336.85,0.00010958,2]
[347416748,1735777838585,-1409.4,0.00010958,2]
[347416750,1735777838595,-500.0,0.00010958,2]
[347416752,1735777838605,-1121.08,0.00010958,2]
[347416754,1735777838614,-500.0,0.00010958,2]
[347416756,1735777838622,-1134.0,0.00010958,2]
[347416758,1735777838631,-500.0,0.00010958,2]
[347416760,1735777838641,-500.0,0.00010958,2]
[347416762,1735777838650,-3202.63,0.00010958,2]
[347416764,1735777838660,-1222.17,0.00010958,2]
[347416766,1735777838669,-15411.37,0.00010958,2]
[347416768,1735777838678,-1123.09,0.00010958,2]
[347416769,1735777838687,-2564.28,0.00010958,2]
[347416771,1735777838696,-500.0,0.00010958,2]
[347416773,1735777838706,-500.0,0.00010958,2]
[347416775,1735777838715,-510.63,0.00010958,2]
[347416777,1735777838724,-873.27,0.00010958,2]
[347416779,1735777838734,-657.3,0.00010958,2]
[347416781,1735777838743,-1864.53,0.00010958,2]
[347416783,1735777838752,-1411.18,0.00010958,2]
[347416785,1735777838762,-500.0,0.00010958,2]
[347416787,1735777838771,-5094.63,0.00010958,2]
[347416789,1735777838781,-639.2,0.00010958,2]
[347416791,1735777838791,-640.34,0.00010958,2]
[347416793,1735777838800,-1183.24,0.00010958,2]
[347416794,1735777838809,-500.0,0.00010958,2]
[347416795,1735777838818,-500.0,0.00010958,2]
[347416796,1735777838827,-2523.19,0.00010958,2]
[347416797,1735777838836,-768.03,0.00010958,2]
[347416798,1735777838845,-500.0,0.00010958,2]
[347416799,1735777838854,-3229.45,0.00010958,2]
[347416800,1735777838863,-3985.62,0.00010958,2]
[347416801,1735777838873,-1208.94,0.00010958,2]
[347416802,1735777838882,-500.0,0.00010958,2]
[347416803,1735777838891,-1050.86,0.00010958,2]
[347416804,1735777838900,-2728.93,0.00010958,2]
[347416805,1735777838910,-1166.77,0.00010958,2]
[347416806,1735777838921,-500.0,0.00010958,2]